[Event "Silves Open 2025"]
[Site "Fissul"]
[Date "2025.03.06"]
[Round "8.23"]
[White "Bravo Galvez, Ricardo"]
[Black "Silva, Ana Ines Teixeira Da"]
[Result "0-1"]
[Annotator "TA"]
[ECO "D50"]
[WhiteElo "2098"]
[BlackElo "1901"]
[PlyCount "66"]
[EventDate "2025.03.03"]
[EventType "swiss"]
[EventCountry "POR"]
[SourceTitle "playchess.com"]
[Source "ChessBase"]
[SourceQuality "1"]
[TimeControl "5400+30"]

{[%evp 9,66,28,26,-5,-1,-2,-10,-14,0,-13,-2,-16,-19,-22,-23,-37,-42,-43,-25,-80,-75,-74,-87,-87,-88,-82,-83,-86,-68,-60,-49,-90,-88,-184,-184,-195,-204,-434,-436,-793,-787,-760,-757,-2107,-1397,-1663,-1012,-962,-898,-1214,-1194,-6000,-5797,-5070,-5275,-29986,-29987,-29988,-29989]} 1. d4 {[%emt 1:31:00]} d5 2. c4 {[%emt 0:00:30]} e6 {[%emt 1:31:30]} 3. Nc3 {[%emt 0:00:30]} Nf6 {[%emt 0:00:30]} 4. Bg5 {[%emt 0:00:30]} dxc4 {[%emt 0:00:30]} 5. e3 {[%emt 0:00:30]} c5 {[%emt 0:00:30]} 6. dxc5 {[%emt 0:00:30] D50: Queen's Gambit Declined: Dutch-Peruvian Gambit.} Qxd1+ {[%emt 0:00:30]} 7. Rxd1 {[%emt 0:00:30]} Bxc5 {[%emt 0:00:30]} 8. Bxc4 {[%emt 0:00:30] The position is equal.} a6 {[%emt 0:00:30] Repels Nb5} 9. Nge2 {[%emt 0:00:30][%cal Oc3e4]} Nbd7 {[%emt 0:00:30]} 10. O-O {[%emt 0:00:30]} b5 {[%emt 0:00:30]} 11. Bb3 {[%emt 0:00:30]} Bb7 {[%emt 0:00:30]} 12. a3 $146 {[%emt 0:00:30]} (12. h3 O-O-O 13. Rc1 Kb8 14. Bf4+ Ka7 15. Rfd1 Bb6 16. Bh2 Nc5 17. Bc2 Rxd1+ 18. Rxd1 {1-0 Montano Vicente,G (1971)-Clawitter,C (2050) Titled Tuesday intern op 04th Jun Early blitz 2024 (10)}) 12... h6 {[%emt 0:00:30]} 13. Bf4 {[%emt 0:00:30]} Ke7 {[%emt 0:00:30]} 14. Ba2 {[%emt 0:00:30]} (14. h3 $11 {remains equal.}) 14... g5 $17 {[%emt 0:00:30]} 15. Bg3 {[%emt 0:00:30]} h5 {[%emt 0:00:30] [#] Threatens to win with ...h4.} 16. b4 {[%emt 0:00:30]} h4 $1 {[%emt 0:00:30]} 17. bxc5 {[%emt 0:00:30]} hxg3 {[%emt 0:00:30]} 18. Nxg3 {[%emt 0:00:30]} Nxc5 {[%emt 0:00:30] Black has a queen side majority} 19. Rd4 {[%emt 0:00:30]} Rh4 {[%emt 0:00:30]} 20. Rfd1 {[%emt 0:00:30]} Rah8 {[%emt 0:00:30]} (20... Rc8 {looks sharper.} 21. f4 Nb3 22. R4d3 gxf4 23. exf4 Nd4) 21. Rxh4 {[%emt 0:00:30]} (21. h3 $17) 21... gxh4 $19 {[%emt 0:00:30]} 22. Nge2 {[%emt 0:00:30] [#]} Rg8 $1 {[%emt 0:00:30]} 23. Nf4 {[%emt 0:00:30]} (23. g3 {is a better defense.}) 23... Bxg2 {[%emt 0:00:30]} 24. Rd4 {[%emt 0:00:30]} ({Don't play} 24. Nxg2 h3 25. Kf1 Rxg2) (24. Rc1 $142) 24... e5 {[%emt 0:00:30][%csl LRd4,LRf4]} 25. Nxg2 {[%emt 0:00:30]} exd4 {[%emt 0:00:30]} 26. Nxb5 {[%emt 0:00:30]} axb5 {[%emt 0:00:30]} 27. Kf1 {[%emt 0:00:30]} dxe3 {[%emt 0:00:30]} 28. Nxe3 {[%emt 0:00:30]} Ng4 {[%emt 0:00:30]} 29. Nf5+ {[%emt 0:00:30]} Kf6 {[%emt 0:00:30]} 30. Nxh4 {[%emt 0:00:30]} Nxh2+ {[%emt 0:00:30]} 31. Ke2 {[%emt 0:00:30]} Rg4 {[%emt 0:00:30]} 32. Nf3 {[%emt 0:00:30]} Re4+ {[%emt 0:00:30]} 33. Kd1 {[%emt 0:00:30]} Nxf3 {[%emt 0:00:30] Weighted Error Value: White=1.12/Black=0.37  Mistake:       	White=4     	---        Inaccurate:     	White=1     	---        OK:         	White=5     	Black=6      Best:        	White=1     	Black=3      Strong:       	---       	Black=2} 0-1

[Event "Silves Open 2025"]
[Site "Fissul"]
[Date "2025.03.06"]
[Round "8.24"]
[White "Li, Leon"]
[Black "Santos, Jose P"]
[Result "0-1"]
[Annotator "TA"]
[ECO "B13"]
[WhiteElo "1627"]
[BlackElo "2273"]
[PlyCount "90"]
[EventDate "2025.03.03"]
[EventType "swiss"]
[EventCountry "POR"]
[SourceTitle "playchess.com"]
[Source "ChessBase"]
[SourceQuality "1"]
[TimeControl "5400+30"]

{[%evp 20,90,23,23,24,25,29,21,23,22,31,29,31,29,28,18,19,15,18,0,0,-7,-7,-12,-7,0,-6,-22,-22,-27,-26,-56,-47,-62,-57,-72,-60,-62,-64,-99,-98,-116,-79,-155,-115,-140,-80,-171,-179,-170,-186,-184,-184,-184,-184,-245,-263,-303,-281,-334,-332,-365,-348,-400,-409,-397,-396,-653,-472,-5069,-5064,-29994,-29995]} 1. e4 {[%emt 0:00:15]} c6 {[%emt 0:00:08]} 2. d4 {[%emt 0:00:25]} d5 {[%emt 0:00:06]} 3. exd5 {[%emt 0:00:25]} cxd5 {[%emt 0:00:06]} 4. Bd3 {[%emt 0:00:33]} Nc6 {[%emt 0:00:07]} 5. c3 {[%emt 0:00:35]} Nf6 {[%emt 0:00:13]} 6. Bf4 {[%emt 0:00:39]} Bg4 {[%emt 0:00:09]} 7. Nf3 {[%emt 0:01:21]} e6 {[%emt 0:00:22]} 8. Nbd2 {[%emt 0:00:51]} Bd6 {[%emt 0:00:10]} 9. Bxd6 {[%emt 0:00:44]} Qxd6 {[%emt 0:00:07]} 10. O-O {[%emt 0:01:18]} O-O {[%emt 0:00:12]} 11. Re1 {[%emt 0:02:37]} Rfe8 {[%emt 0:02:10] B13: Caro-Kann: Exchange Variation and Panov-Botvinnik Attack.} 12. Qc2 {[%emt 0:07:48]} Rec8 {[%emt 0:00:26]} 13. Qb3 {[%emt 0:01:40]} Bxf3 {[%emt 0:03:32] The position is equal.} 14. Nxf3 {[%emt 0:01:03]} Nd7 {[%emt 0:00:22]} 15. Rad1 $146 {[%emt 0:07:05]} (15. Qc2 h6 16. Qd2 Re8 17. Re2 e5 18. dxe5 Ndxe5 19. Nxe5 Rxe5 20. Rxe5 Nxe5 21. h3 Rd8 22. Rd1 {1-0 Schweitzer,V (2205)-Roth,A (1970) Wasselonne op 2009 (5)}) 15... a6 {[%emt 0:00:25]} 16. a4 {[%emt 0:06:19]} (16. Qxb7 $2 Rcb8 $19) 16... h6 {[%emt 0:01:23]} 17. h3 {[%emt 1:05:22]} (17. Qxb7 $2 Rcb8 $19) 17... Rab8 {[%emt 0:09:33]} 18. Ra1 {[%emt 0:00:00]} Re8 {[%emt 0:16:07]} 19. Rad1 {[%emt 0:00:00]} b5 {[%emt 0:01:46]} 20. axb5 {[%emt 0:00:00]} axb5 {[%emt 0:00:06]} 21. Qc2 {[%emt 0:00:00]} (21. Bxb5 $2 Na7 22. Bxd7 (22. c4 $2 dxc4 23. Qxc4 Nxb5 $19) 22... Rxb3 $19) 21... Rec8 {[%emt 0:00:33]} 22. Qd2 {[%emt 0:00:00]} Na5 {[%emt 0:01:23]} 23. Rb1 {[%emt 0:00:00]} b4 24. Qc2 {[%emt 0:03:30]} Nc4 {[%emt 0:17:15]} 25. Bxc4 Rxc4 {[%emt 0:00:00]} 26. Nd2 {[%emt 0:01:00]} Rc6 27. Rec1 {[%emt 0:00:00]} Rbc8 {[%emt 0:00:41] Black is more active.} 28. Ra1 {[%emt 0:00:00]} e5 {[%emt 0:01:44]} 29. Nf3 {[%emt 0:00:00]} e4 {[%emt 0:01:21]} 30. Nd2 {[%emt 0:00:00]} Qf6 {[%emt 0:00:40]} 31. Ra7 {[%emt 0:00:00]} (31. Qb3 $142 bxc3 32. bxc3) 31... bxc3 {[%emt 0:02:53]} 32. bxc3 {[%emt 0:00:00] [#]} Nb6 {[%emt 0:02:40]} (32... Nf8 $142 $1 {Strongly threatening ...Rxc3.} 33. Nf1 Ne6) 33. Nb3 {[%emt 0:00:00]} (33. Nf1 $17 {was called for.}) 33... Rxc3 $19 {[%emt 0:00:29]} 34. Qxc3 {[%emt 0:00:00]} Rxc3 {[%emt 0:00:04]} 35. Rxc3 {[%emt 0:00:00]} Nc4 {[%emt 0:00:23]} 36. Ra8+ {[%emt 0:00:00]} Kh7 {[%emt 0:00:07]} 37. Ra1 {[%emt 0:00:00]} (37. Ra7 $142) 37... Qb6 {[%emt 0:00:16]} 38. Rac1 {[%emt 0:00:00] [#]} f5 $1 {[%emt 0:00:32]} 39. g3 {[%emt 0:00:00]} Qf6 {[%emt 0:00:12]} 40. Rd1 {[%emt 0:00:00]} f4 {[%emt 0:00:23]} 41. gxf4 {[%emt 0:00:00]} Qxf4 {[%emt 0:00:07]} 42. Re1 {[%emt 0:00:00]} Nd6 {[%emt 0:05:19]} 43. Rc5 $2 {[%emt 0:00:00]} (43. Ra1) 43... Nf5 {[%emt 0:01:34]} 44. Rxd5 {[%emt 0:05:36]} (44. Rc3 $142) 44... e3 {[%emt 0:00:07]} 45. fxe3 {[%emt 0:00:16]} Qg3+ {[%emt 0:00:06] Weighted Error Value: White=0.66/Black=0.14 (very precise)   Mistake:       	White=5     	Black=1      Inaccurate:     	White=3     	Black=1      OK:         	White=5     	Black=11     Best:        	---       	Black=3      Strong:       	---       	Black=1} 0-1

[Event "Silves Open 2025"]
[Site "Fissul"]
[Date "2025.03.06"]
[Round "8.25"]
[White "Crow, Steve"]
[Black "De Kruif, Kees"]
[Result "0-1"]
[Annotator "NA RC COMBH"]
[ECO "B23"]
[WhiteElo "1742"]
[BlackElo "1857"]
[PlyCount "79"]
[EventDate "2025.03.03"]
[EventType "swiss"]
[EventCountry "POR"]
[SourceTitle "playchess.com"]
[Source "ChessBase"]
[SourceQuality "1"]
[TimeControl "5400+30"]

1. e4 c5 2. Nc3 d6 3. f4 g6 4. Nf3 Bg7 5. Bb5+ Bd7 6. O-O {B23: Closed Sicilian: Lines without g3.} Bxb5 7. Nxb5 a6 8. Nc3 Nc6 9. d3 e6 10. a4 Nge7 11. Qe1 O-O 12. Qh4 Nd4 13. Nxd4 cxd4 14. Nb1 Rc8 15. Na3 Nc6 16. Qf2 Nb4 17. f5 Qf6 18. h4 h6 19. g4 gxf5 20. Qg3 Qg6 21. exf5 exf5 22. Rxf5 Nxc2 23. Nxc2 Rxc2 24. Bf4 Rc5 25. h5 Qe6 26. Re1 Be5 27. Bxe5 Rxe5 $14 28. Ref1 (28. Rexe5 $14 dxe5 29. Rxe5) 28... Re3 29. Qf4 Rxd3 30. g5 Qe3+ 31. Qxe3 Rxe3 32. gxh6 d3 33. Rd5 Re6 34. Rd1 Rxh6 35. R1xd3 Rd8 36. Rb3 Rd7 37. Rb6 Kf8 38. b4 Ke7 39. Kh2 Ke6 40. Rg5 0-1

[Event "Silves Open 2025"]
[Site "Fissul"]
[Date "2025.03.06"]
[Round "8.26"]
[White "Silverio, Vitor Luis De Jesus"]
[Black "Tacuchian, Marcelo Oliveira"]
[Result "1-0"]
[Annotator "TA"]
[ECO "B21"]
[WhiteElo "2143"]
[BlackElo "1620"]
[PlyCount "107"]
[EventDate "2025.03.03"]
[EventType "swiss"]
[EventCountry "POR"]
[SourceTitle "playchess.com"]
[Source "ChessBase"]
[SourceQuality "1"]
[TimeControl "5400+30"]

{[%evp 9,107,-24,-3,-3,17,14,20,-23,-24,-26,-21,-36,-32,-34,-28,-53,-43,-66,-31,-26,-21,-31,15,-20,0,-22,68,0,61,50,78,80,81,1,5,16,70,55,112,110,159,152,171,151,216,207,244,190,224,165,262,146,114,104,373,154,150,176,169,169,148,156,252,229,233,187,184,191,315,343,328,327,392,391,405,408,399,375,406,397,413,392,402,354,443,455,505,491,513,497,29991,29992,29992,29993,29993,29994,29994,29995,29995,547]} 1. e4 {[%emt 0:00:08]} c5 {[%emt 0:00:06]} 2. f4 {[%emt 0:00:04]} Nc6 {[%emt 0:00:44]} 3. Nf3 {[%emt 0:00:11]} g6 {[%emt 0:00:43]} 4. c3 {[%emt 0:00:35]} d5 {[%emt 0:04:25]} 5. d3 {[%emt 0:01:12]} Bg7 {[%emt 0:01:03]} 6. Be2 {[%emt 0:02:06] B21: Sicilian: 2 f4 and Morra Gambit.} e6 {[%emt 0:01:04]} 7. O-O {[%emt 0:00:45]} Nge7 {[%emt 0:00:10]} 8. Qc2 {[%emt 0:02:30] The position is equal. 8.Be3 is becoming the main line.} O-O {[%emt 0:02:00]} 9. Re1 {[%emt 0:00:35]} b6 {[%emt 0:00:48]} 10. Nbd2 {[%emt 0:00:40]} Bb7 {[%emt 0:00:17]} 11. Nf1 {[%emt 0:00:11]} Rc8 {[%emt 0:00:42]} 12. Be3 $146 {[%emt 0:00:46]} (12. a3 a5 13. Ng3 Qc7 14. e5 Rfd8 15. Bd2 Qb8 16. Rac1 Ba6 17. Qb1 a4 18. Bd1 {½-½ Aufmwasser,G (1690)-Duijker,B (1910) Schleswig Holstein-ch Seniors op 2014 (3)}) 12... d4 {[%emt 0:04:11]} 13. Bf2 {[%emt 0:01:12]} Bh6 {[%emt 0:03:16]} 14. Bg3 {[%emt 0:01:40]} Qd7 {[%emt 0:09:31]} 15. Rad1 {[%emt 0:02:23]} Rfd8 {[%emt 0:00:23]} (15... f5 $15) 16. h3 {[%emt 0:00:38]} Qe8 {[%emt 0:03:12]} 17. N1h2 {[%emt 0:04:00]} Rd7 {[%emt 0:01:29]} (17... Bg7 $11) 18. c4 {[%emt 0:00:46]} (18. Ng4 $14 Bg7 19. Bh4) 18... Ba6 {[%emt 0:12:39]} (18... f6 $11) 19. Rb1 $14 {[%emt 0:02:50]} Kh8 {[%emt 0:01:39]} 20. a3 {[%emt 0:00:25]} Bb7 {[%emt 0:06:52]} 21. Ne5 {[%emt 0:05:05]} ({White should play} 21. b4 $16) 21... Nxe5 $11 {[%emt 0:08:05]} 22. fxe5 {[%emt 0:00:29]} Nc6 {[%emt 0:00:31]} ({Better is} 22... Be3+ $11 23. Kh1 h5) 23. Rf1 {[%emt 0:00:32]} Rcc7 {[%emt 0:00:26]} (23... Bg5 $14) 24. Ng4 $16 {[%emt 0:03:15]} Bg7 {[%emt 0:04:50]} (24... Be3+ $142 25. Nxe3 dxe3) 25. Qd2 {[%emt 0:00:30] White is more active.} Qe7 {[%emt 0:05:42]} 26. Rf2 {[%emt 0:06:51]} Rc8 {[%emt 0:01:18]} (26... Qf8 $16 27. Nf6 Rd8) 27. Rbf1 {[%emt 0:00:14]} Rf8 {[%emt 0:00:15]} 28. Qf4 {[%emt 0:01:25]} a6 {[%emt 0:05:59]} 29. Qd2 {[%emt 0:03:41]} Qd8 {[%emt 0:01:18]} (29... b5) 30. Nh6 {[%emt 0:01:52]} (30. Bf4 $18) 30... Qc7 {[%emt 0:01:00]} 31. Qg5 {[%emt 0:06:37]} Bxe5 $2 {[%emt 0:03:11][%mdl 8192] [#] Black cannot hold the game after this.} (31... b5 $16) 32. Rxf7 $1 {[%emt 0:01:38][%mdl 512]} Rdxf7 {[%emt 0:04:52]} (32... Rfxf7 33. Nxf7+) 33. Rxf7 {[%emt 0:00:45]} Rxf7 {[%emt 0:00:20]} 34. Nxf7+ {[%emt 0:04:22]} Qxf7 {[%emt 0:00:28]} 35. Bxe5+ {[%emt 0:00:05]} Nxe5 {[%emt 0:00:25]} (35... Kg8 $16 36. Bd6 Kg7) 36. Qxe5+ {[%emt 0:00:04][%mdl 4096] Endgame KQB-KQB} Kg8 {[%emt 0:01:15]} 37. Bg4 $36 {[%emt 0:00:52][%mdl 2048] White has strong initiative.} Bc8 {[%emt 0:02:09]} 38. Qb8 {[%emt 0:02:07][%csl LRb6,LRc8]} Qe8 {[%emt 0:00:54]} (38... Qf8 {was worth a try.} 39. Bf3 (39. Qxb6 Qf4 $16) 39... e5) 39. Qxb6 $18 {[%emt 0:00:23]} Qe7 {[%emt 0:01:43]} 40. Qb8 {[%emt 0:02:03]} Qd7 {[%emt 0:01:44]} 41. b4 {[%emt 0:05:19]} cxb4 {[%emt 0:01:15]} 42. axb4 {[%emt 0:00:06]} Kf7 {[%emt 0:00:07]} 43. Qf4+ {[%emt 0:02:13]} Kg7 {[%emt 0:01:31]} 44. Qe5+ {[%emt 0:00:41]} Kf7 {[%emt 0:00:18]} 45. Bd1 {[%emt 0:03:51]} Qe7 {[%emt 0:00:47]} 46. c5 {[%emt 0:03:58]} ({Not} 46. Qxd4 Qxb4 47. Bf3 Qb1+ 48. Kh2 Qb8+ 49. e5 Qc7 $18) 46... Kg8 {[%emt 0:00:45]} 47. Bb3 {[%emt 0:00:43]} ({Don't take} 47. Qxd4 Qg5 48. c6 e5 49. Qc4+ Kg7 $18) 47... Bd7 {[%emt 0:00:56]} 48. Qxd4 {[%emt 0:00:16]} Bb5 {[%emt 0:01:07]} 49. Qd6 {[%emt 0:03:06]} Qg5 {[%emt 0:01:10]} (49... Qxd6 $18 50. cxd6 Kf7) 50. Qxe6+ {[%emt 0:00:37] White mates.} Kg7 {[%emt 0:00:07]} 51. Qg8+ {[%emt 0:00:09]} Kh6 {[%emt 0:00:14]} 52. Qf8+ {[%emt 0:00:05]} Kh5 {[%emt 0:00:13]} 53. Bd1+ {[%emt 0:00:05]} Kh4 {[%emt 0:00:13]} 54. Qf2+ {[%emt 0:00:10] Weighted Error Value: White=0.21 (precise) /Black=0.57  Loses game:     	---       	Black=1      Missed win:     	White=1     	---        Mistake:       	White=3     	Black=11     Inaccurate:     	White=2     	Black=2      OK:         	White=14    	Black=8      Best:        	White=2     	Black=2} 1-0

[Event "Silves Open 2025"]
[Site "Fissul"]
[Date "2025.03.06"]
[Round "8.27"]
[White "Goncalves, Nuno Filipe Pocinho"]
[Black "Sanchez Guirado, Francisco"]
[Result "0-1"]
[Annotator "TA"]
[ECO "B50"]
[WhiteElo "1731"]
[BlackElo "2286"]
[PlyCount "72"]
[EventDate "2025.03.03"]
[EventType "swiss"]
[EventCountry "POR"]
[SourceTitle "playchess.com"]
[Source "ChessBase"]
[SourceQuality "1"]
[TimeControl "5400+30"]

{[%evp 10,70,12,-1,2,-6,0,0,0,-13,9,-27,-23,-35,20,10,14,10,6,-27,-30,-102,-105,-110,-107,-143,-139,-472,-492,-678,-459,-467,-383,-366,-375,-388,-373,-586,-379,-394,-397,-589,-596,-578,-558,-544,-473,-547,-473,-458,-420,-554,-529,-539,-434,-1077,-882,-858,-906,32767,32767,32767,-3028]} 1. e4 {[%emt 0:00:03]} c5 {[%emt 0:03:00]} 2. Nf3 {[%emt 0:00:30]} e6 {[%emt 0:00:30]} 3. b3 {[%emt 0:00:30]} Nc6 {[%emt 0:00:30]} 4. Bb2 {[%emt 0:00:30]} d6 {[%emt 0:00:30]} 5. Bb5 {[%emt 0:00:30]} Bd7 {[%emt 0:00:30]} 6. O-O {[%emt 0:00:30]} a6 {[%emt 0:00:30] B50: Sicilian: 2...d6, Miscellaneous.} 7. Bc4 {[%emt 0:00:30]} b5 {[%emt 0:00:30]} 8. Be2 {[%emt 0:00:30]} Nf6 {[%emt 0:00:30] The position is equal.} 9. d3 $146 {[%emt 0:00:30]} ({Predecessor:} 9. e5 dxe5 10. Nxe5 Be7 11. Nxd7 Qxd7 12. Bf3 O-O 13. d3 Rfd8 14. Nd2 Rac8 15. Ne4 {0-1 Karapetyan,G (1658)-Kappushev,A (1942) Kislovodsk op 2013 (9)}) 9... Be7 {[%emt 0:00:30]} 10. a4 {[%emt 0:00:30]} O-O {[%emt 0:00:30]} 11. e5 {[%emt 0:00:30]} Ng4 {[%emt 0:00:30]} (11... Nd5 $15) 12. exd6 $11 {[%emt 0:00:30]} Bxd6 {[%emt 0:00:30]} 13. h3 {[%emt 0:00:30]} Nh6 {[%emt 0:00:30][%cal Bg4h6,Bh6f5,Bf5d4][%mdl 32]} 14. Qd2 {[%emt 0:00:30]} Nf5 {[%emt 0:00:30]} 15. Ng5 {[%emt 0:00:30]} (15. axb5 $11 {keeps the balance.} axb5 16. Rxa8 Qxa8 17. d4) 15... Ncd4 $17 {[%emt 0:00:30]} 16. Ne4 {[%emt 0:00:30]} Bc6 {[%emt 0:00:30] Black is more active.} 17. Bxd4 {[%emt 0:00:30]} Nxd4 {[%emt 0:00:30]} 18. Nbc3 $2 {[%emt 0:00:30][%mdl 8192] White does not recover from this.} (18. Nxd6 $17 {is tougher.} Qxd6 19. Nc3) 18... b4 $19 {[%emt 0:00:30]} 19. Nd1 {[%emt 0:00:30]} Bxe4 {[%emt 0:00:30]} 20. dxe4 {[%emt 0:00:30] [#]} Nf3+ $1 {[%emt 0:00:30][%mdl 512]} 21. Bxf3 {[%emt 0:00:30] [#] Threatens to win with Qe2.} Bh2+ $1 {[%emt 0:00:30][%mdl 512]} 22. Kxh2 {[%emt 0:00:30]} Qxd2 {[%emt 0:00:30]} 23. e5 {[%emt 0:00:30]} (23. Ne3 $142) 23... Qf4+ {[%emt 0:00:30]} 24. Kg1 {[%emt 0:00:30]} Qxe5 {[%emt 0:00:30]} 25. Bxa8 {[%emt 0:00:30]} (25. Ne3 $142) 25... Qxa1 {[%emt 0:00:30]} 26. Bb7 {[%emt 0:00:30]} a5 {[%emt 0:00:30]} 27. Ne3 {[%emt 0:00:30]} Qe5 {[%emt 0:00:30]} 28. Bc6 {[%emt 0:00:30]} Qc7 {[%emt 0:00:30]} 29. Bb5 {[%emt 0:00:30]} Rd8 {[%emt 0:00:30]} 30. Re1 {[%emt 0:00:30]} Rd2 {[%emt 0:00:30]} 31. Bd3 {[%emt 0:00:30]} Qf4 {[%emt 0:00:30]} 32. f3 {[%emt 0:00:30]} (32. Rf1 $142) 32... Qd4 {[%emt 0:00:30]} 33. Kh1 {[%emt 0:00:30]} Rxd3 {[%emt 0:00:30]} 34. Nf5 {[%emt 0:00:30]} Rd1 {[%emt 0:00:30]} 35. Nxd4 {[%emt 0:00:30]} Rxe1+ {[%emt 0:00:30]} 36. Kh2 {[%emt 0:00:30]} cxd4 {[%emt 0:00:30] Weighted Error Value: White=0.65/Black=0.41  Loses game:     	White=1     	---        Mistake:       	White=4     	Black=1      Inaccurate:     	White=5     	Black=2      OK:         	White=4     	Black=8      Best:        	White=2     	Black=2      Brilliant:      	---       	Black=1} 0-1

[Event "Silves Open 2025"]
[Site "Fissul"]
[Date "2025.03.06"]
[Round "8.28"]
[White "Pena, Helio Adelino Silva"]
[Black "Botelho, Adelino"]
[Result "0-1"]
[Annotator "NA RC COMBH"]
[ECO "D35"]
[WhiteElo "1842"]
[BlackElo "1550"]
[PlyCount "117"]
[EventDate "2025.03.03"]
[EventType "swiss"]
[EventCountry "POR"]
[SourceTitle "playchess.com"]
[Source "ChessBase"]
[SourceQuality "1"]
[TimeControl "5400+30"]

1. d4 {[%emt 0:00:30]} d5 {[%emt 0:00:30]} 2. c4 {[%emt 0:00:30]} c6 {[%emt 0:00:30]} 3. Nc3 {[%emt 0:00:30]} Nf6 {[%emt 0:00:11]} 4. Bf4 {[%emt 0:00:14]} e6 {[%emt 0:07:55]} 5. e3 {[%emt 0:01:33]} Nbd7 {[%emt 0:01:56]} 6. a3 {[%emt 0:02:09]} Be7 {[%emt 0:01:03]} 7. c5 {[%emt 0:02:23]} O-O {[%emt 0:01:30]} 8. Bd3 {[%emt 0:00:11]} b6 {[%emt 0:06:07]} 9. b4 {[%emt 0:00:33]} bxc5 {[%emt 0:00:24]} 10. bxc5 {[%emt 0:00:21]} a5 {[%emt 0:00:31]} 11. Qe2 {[%emt 0:00:56]} Nb8 {[%emt 0:05:48]} 12. h3 {[%emt 0:00:34]} Ba6 {[%emt 0:04:58]} 13. Nf3 {[%emt 0:01:56]} Bxd3 {[%emt 0:00:28]} 14. Qxd3 {[%emt 0:00:09]} Nbd7 {[%emt 0:01:35]} 15. O-O {[%emt 0:00:26]} h6 {[%emt 0:03:08]} 16. Rab1 {[%emt 0:04:08]} Re8 {[%emt 0:07:31]} 17. Rb7 {[%emt 0:04:11]} Bxc5 {[%emt 0:11:31]} 18. Na4 {[%emt 0:04:03]} Be7 {[%emt 0:02:29]} 19. Rfb1 {[%emt 0:04:07]} c5 {[%emt 0:01:38]} 20. Qb5 {[%emt 0:02:43]} c4 {[%emt 0:02:45]} 21. Ne5 {[%emt 0:04:09]} Nxe5 {[%emt 0:02:00]} 22. Bxe5 {[%emt 0:00:56]} Bxa3 {[%emt 0:02:20]} 23. Bc7 {[%emt 0:05:41]} Qd7 {[%emt 0:04:20]} 24. Bxa5 {[%emt 0:02:08]} Qxb5 {[%emt 0:01:23]} 25. R7xb5 {[%emt 0:05:55]} Bd6 {[%emt 0:01:32]} 26. Nc5 {[%emt 0:02:54]} Kf8 {[%emt 0:04:19]} 27. Nb7 {[%emt 0:08:14]} Be7 {[%emt 0:01:20]} 28. f3 {[%emt 0:03:31]} g6 {[%emt 0:01:14]} 29. Kf2 {[%emt 0:00:49]} h5 {[%emt 0:01:09]} 30. Ke2 {[%emt 0:00:16]} Rec8 {[%emt 0:01:32]} 31. Nc5 {[%emt 0:02:33]} Rc6 {[%emt 0:02:25]} 32. g4 {[%emt 0:01:17]} hxg4 {[%emt 0:00:30]} 33. hxg4 {[%emt 0:00:34]} Rac8 {[%emt 0:03:31]} 34. g5 {[%emt 0:03:35]} Nh7 {[%emt 0:04:42]} 35. f4 {[%emt 0:06:45]} Kg7 {[%emt 0:03:44]} 36. Bc3 {[%emt 0:01:31]} Kg8 {[%emt 0:01:06]} 37. Nd7 {[%emt 0:01:47]} Ra6 {[%emt 0:01:17]} 38. R1b2 {[%emt 0:03:35]} Ra3 {[%emt 0:01:23]} 39. Kd2 {[%emt 0:00:17]} Rca8 {[%emt 0:00:35]} 40. Rb7 {[%emt 0:02:28]} R8a7 {[%emt 0:01:50]} 41. Rb8+ {[%emt 0:01:40]} Kg7 {[%emt 0:00:53]} 42. Nb6 {[%emt 0:03:43]} Rc7 {[%emt 0:01:02]} 43. Nc8 {[%emt 0:02:15]} Bf8 {[%emt 0:02:49]} 44. Nb6 {[%emt 0:03:25]} f6 {[%emt 0:00:19]} 45. Rxf8 {[%emt 0:01:04]} Nxf8 {[%emt 0:00:38]} 46. gxf6+ {[%emt 0:00:19]} Kxf6 {[%emt 0:00:36]} 47. Kc2 {[%emt 0:00:24]} Nd7 {[%emt 0:00:37]} 48. Nxd7+ {[%emt 0:00:57]} Rxd7 {[%emt 0:00:10]} 49. Bb4 {[%emt 0:00:06]} Rxe3 {[%emt 0:00:27]} 50. Bd2 {[%emt 0:00:25]} Rd3 {[%emt 0:00:41]} 51. Rb8 {[%emt 0:00:10]} Rh7 {[%emt 0:00:59]} 52. Rf8+ {[%emt 0:03:59]} Rf7 {[%emt 0:00:14]} 53. Ra8 {[%emt 0:00:54]} Kf5 {[%emt 0:00:41]} 54. Ra1 {[%emt 0:00:42]} Rh7 {[%emt 0:00:38]} 55. Rd1 {[%emt 0:01:30]} Rh2 {[%emt 0:00:16]} 56. Kc1 {[%emt 0:00:12]} c3 {[%emt 0:01:28]} 57. Be1 {[%emt 0:00:40]} Rxd1+ {[%emt 0:00:16]} 58. Kxd1 {[%emt 0:00:07]} c2+ {[%emt 0:00:30]} 59. Kc1 {[%emt 0:00:11]} 0-1